bitfinex-derivatives/quotes_BTCF0:USTF0_20250903
["timestamp","ask_amount","ask_price","bid_price","bid_amount"]
[1756893529980,0.85115903,111340.0,111330.0,0.67312338]
[1756893530181,1.19135569,111340.0,111330.0,1.00410666]
[1756893533475,1.16927666,111340.0,111330.0,1.00410666]
[1756893533676,1.19131387,111340.0,111330.0,1.00410666]
[1756893536584,0.85111721,111340.0,111330.0,0.66391]
[1756893536785,0.85111721,111340.0,111330.0,1.00410666]
[1756893537886,1.19131387,111340.0,111330.0,1.00410666]
[1756893538080,0.85111721,111340.0,111330.0,0.66391]
[1756893538384,1.19131387,111340.0,111330.0,1.00410666]
[1756893538987,0.85111721,111340.0,111330.0,1.00410666]
[1756893539180,1.19131387,111340.0,111330.0,0.75410666]
[1756893539582,0.85111721,111340.0,111330.0,0.75410666]
[1756893542284,0.85111721,111340.0,111330.0,0.41391]
[1756893542490,0.85111721,111340.0,111330.0,0.75410666]
[1756893544785,0.02203721,111340.0,111330.0,1.34430332]
[1756893544984,0.00062,111350.0,111340.0,0.03724]
[1756893545187,0.02207836,111350.0,111340.0,1.89678332]
[1756893545387,0.46006,111360.0,111340.0,1.93402332]
[1756893545590,0.85277125,111360.0,111350.0,0.44067666]
[1756893545791,0.85267125,111360.0,111350.0,0.44067666]
[1756893546593,0.85267125,111360.0,111350.0,0.77067666]
[1756893546798,0.56267125,111360.0,111350.0,0.77067666]
[1756893547101,0.02291125,111360.0,111350.0,0.77067666]
[1756893547287,0.02591125,111360.0,111350.0,0.77067666]
[1756893547686,0.00384,111360.0,111350.0,1.11087332]
[1756893547891,0.00384,111360.0,111350.0,0.77067666]
[1756893551992,0.00364,111360.0,111350.0,0.77067666]
[1756893552191,0.00332,111360.0,111350.0,0.77067666]
[1756893552592,0.00332,111360.0,111350.0,1.11087332]
[1756893553386,0.003,111360.0,111350.0,1.11087332]
[1756893554192,0.0032,111360.0,111350.0,0.43048]
[1756893554398,0.34403666,111360.0,111350.0,0.44067666]
[1756893555202,0.00384,111360.0,111350.0,0.44067666]
[1756893555406,0.34403666,111360.0,111350.0,0.44067666]
[1756893556505,0.00384,111360.0,111350.0,0.44067666]
[1756893556805,0.00384,111360.0,111350.0,0.10048]
[1756893557108,0.00384,111360.0,111350.0,0.44067666]
[1756893560415,0.003,111360.0,111350.0,1.37087332]
[1756893561409,0.003,111360.0,111350.0,1.14349572]
[1756893561913,0.003,111360.0,111350.0,1.23329362]
[1756893562104,0.003,111360.0,111350.0,1.68630934]
[1756893564511,0.003,111360.0,111350.0,2.89630934]
[1756893564812,0.003,111360.0,111350.0,3.16010934]
[1756893565009,0.0013,111400.0,111370.0,0.0897797]
[1756893565313,0.36,111400.0,111390.0,0.53808572]
[1756893565504,0.38205043,111400.0,111390.0,0.53808572]
[1756893565701,0.87949043,111400.0,111390.0,0.08507]
[1756893566207,0.88829658,111400.0,111390.0,0.08507]
[1756893566404,1.5913123,111400.0,111390.0,0.08507]
[1756893566604,1.5913123,111400.0,111390.0,0.04902]
[1756893567002,1.58350615,111400.0,111390.0,0.04902]
[1756893567317,1.59455174,111400.0,111390.0,0.04902]
[1756893568417,1.59355174,111400.0,111390.0,0.04902]
[1756893568617,1.14253602,111400.0,111390.0,0.04902]
[1756893568820,1.59555174,111400.0,111390.0,0.04902]
[1756893570816,0.0378,111390.0,111380.0,0.0001]
[1756893571007,0.009,111380.0,111370.0,0.03615]
[1756893571311,0.86508,111380.0,111370.0,0.08507]
[1756893571515,0.88713043,111380.0,111370.0,0.08507]
[1756893574018,0.88713043,111380.0,111370.0,0.09507]
[1756893574418,0.88713043,111380.0,111370.0,0.54808572]
[1756893575408,0.05985043,111380.0,111370.0,0.84808572]
[1756893576123,0.0378,111380.0,111370.0,0.84808572]
[1756893576717,0.009,111390.0,111370.0,1.06203572]
[1756893577015,0.009,111390.0,111380.0,0.53808572]
[1756893577016,0.86496,111390.0,111380.0,0.53808572]
[1756893577220,0.88702309,111390.0,111380.0,0.53808572]
[1756893577422,1.34003881,111390.0,111380.0,0.04902]
[1756893578423,1.34003881,111390.0,111380.0,0.08507]
[1756893578627,0.88802309,111390.0,111380.0,0.08507]
[1756893580319,0.88902309,111390.0,111380.0,0.08507]
[1756893581923,0.90902309,111390.0,111380.0,0.08507]
[1756893582224,0.90902309,111390.0,111380.0,0.04902]
[1756893583022,1.34203881,111390.0,111380.0,0.04902]
[1756893583225,0.0378,111380.0,111370.0,0.08165]
[1756893583422,0.05986309,111380.0,111370.0,0.0473]
[1756893583623,0.05986309,111380.0,111370.0,0.08155]
[1756893585523,0.05986309,111380.0,111370.0,0.53456572]
[1756893589236,0.05086309,111380.0,111370.0,0.53456572]
[1756893589434,0.87782309,111380.0,111370.0,0.53456572]
[1756893590733,0.02206309,111380.0,111370.0,1.11456572]
[1756893590930,0.84902309,111380.0,111370.0,1.16456572]
[1756893592033,0.84902309,111380.0,111370.0,1.09456572]
[1756893592234,0.02206309,111380.0,111370.0,1.09456572]
[1756893592429,0.02206309,111380.0,111370.0,1.13456572]
[1756893593228,0.03646309,111380.0,111370.0,0.79456572]
[1756893593432,0.05086309,111380.0,111370.0,0.79456572]
[1756893593832,0.05986309,111380.0,111370.0,0.79456572]
[1756893594630,0.02206309,111380.0,111370.0,0.79456572]
[1756893594832,0.03646309,111380.0,111370.0,0.79456572]
[1756893595029,0.05086309,111380.0,111370.0,0.79456572]
[1756893595229,0.05986309,111380.0,111370.0,0.79456572]
[1756893597637,0.05086309,111380.0,111370.0,0.79456572]
[1756893598938,0.05986309,111380.0,111370.0,0.79456572]
[1756893599436,0.05986309,111380.0,111370.0,0.54456572]
[1756893600338,0.02206309,111380.0,111370.0,0.54456572]
[1756893600935,0.02206309,111380.0,111370.0,0.53456572]
[1756893601137,0.03646309,111380.0,111370.0,0.53456572]
[1756893601343,0.05986309,111380.0,111370.0,0.53456572]
[1756893601736,0.05986309,111380.0,111370.0,0.08155]
[1756893602041,0.51287881,111380.0,111370.0,0.08155]
[1756893602340,0.05986309,111380.0,111370.0,0.08155]
[1756893602729,0.02206309,111380.0,111370.0,0.53456572]
[1756893603145,0.05986309,111380.0,111370.0,0.53456572]
[1756893603834,0.05986309,111380.0,111370.0,0.08155]
[1756893604428,0.05986309,111380.0,111370.0,0.53456572]
[1756893604429,0.84878309,111380.0,111370.0,0.53456572]
[1756893604630,0.02206309,111380.0,111370.0,0.53456572]
[1756893604938,0.02206309,111380.0,111370.0,0.91456572]
[1756893606043,0.02206309,111380.0,111370.0,0.85456572]
[1756893606240,0.02206309,111380.0,111370.0,0.08155]
[1756893606449,0.02206309,111380.0,111370.0,0.53456572]
[1756893609346,0.02206309,111380.0,111370.0,0.89456572]
[1756893610747,0.02206309,111380.0,111370.0,1.14456572]
[1756893611252,0.02206309,111380.0,111370.0,1.97120572]
[1756893611453,0.02206309,111380.0,111370.0,1.14456572]
[1756893611652,0.02206309,111380.0,111370.0,1.97116572]
[1756893612945,0.02206309,111380.0,111370.0,1.14456572]
[1756893613139,0.02206309,111380.0,111370.0,1.97116572]
[1756893613451,0.02206309,111380.0,111370.0,1.14456572]
[1756893615248,0.0091,111390.0,111370.0,1.15836572]
[1756893615448,0.0379,111390.0,111380.0,0.08258]
[1756893615646,0.05987234,111390.0,111380.0,0.08258]
[1756893615951,0.05987234,111390.0,111380.0,0.53559572]
[1756893616848,0.30987234,111390.0,111380.0,0.08258]
[1756893617150,1.58940806,111390.0,111380.0,0.08258]
[1756893617338,1.59040806,111390.0,111380.0,0.08258]
[1756893617545,1.93040806,111390.0,111380.0,0.04757]
[1756893617855,1.92040806,111390.0,111380.0,0.04757]
[1756893618046,1.59140806,111390.0,111380.0,0.08258]
[1756893618240,1.13839234,111390.0,111380.0,0.08258]
[1756893618440,1.59140806,111390.0,111380.0,0.08258]
[1756893619646,1.93140806,111390.0,111380.0,0.08258]
[1756893619846,1.13839234,111390.0,111380.0,0.08258]
[1756893620862,1.59140806,111390.0,111380.0,0.08258]
[1756893621048,1.13839234,111390.0,111380.0,0.08258]
[1756893621756,1.13831234,111390.0,111380.0,0.08258]
[1756893622750,0.31187234,111390.0,111380.0,0.08258]
[1756893623065,0.88827234,111390.0,111380.0,0.53559572]
[1756893623251,0.87927234,111390.0,111380.0,0.53559572]
[1756893623557,0.87927234,111390.0,111380.0,0.76185332]
[1756893623752,0.88827234,111390.0,111380.0,0.76185332]
[1756893624458,0.03847234,111390.0,111380.0,0.76185332]
[1756893625243,0.06187234,111390.0,111380.0,0.76185332]
[1756893625442,0.06176549,111390.0,111380.0,0.76185332]
[1756893627549,0.02396549,111390.0,111380.0,0.76185332]
[1756893628457,0.85032549,111390.0,111380.0,1.13185332]
[1756893629361,0.87912549,111390.0,111380.0,0.76185332]
[1756893629659,0.88812549,111390.0,111380.0,1.14185332]
[1756893630158,1.22776215,111390.0,111380.0,0.42221666]
[1756893630356,1.22776215,111390.0,111380.0,0.08258]
[1756893630552,1.22776215,111390.0,111380.0,0.04757]
[1756893632458,1.22776215,111390.0,111380.0,0.08258]
[1756893635464,1.22776215,111390.0,111380.0,0.42221666]
[1756893635662,0.88812549,111390.0,111380.0,0.76185332]
[1756893635851,0.06176549,111390.0,111380.0,0.74221666]
[1756893636057,0.88800549,111390.0,111380.0,1.10185332]
[1756893636455,0.06176549,111390.0,111380.0,0.76185332]
[1756893636660,0.87900549,111390.0,111380.0,0.76185332]
[1756893636861,0.88800549,111390.0,111380.0,0.76185332]
[1756893637163,0.88800549,111390.0,111380.0,1.09185332]
[1756893637868,1.22764215,111390.0,111380.0,0.75221666]
[1756893638057,1.22764215,111390.0,111380.0,0.42221666]
[1756893638764,0.88800549,111390.0,111380.0,0.76185332]
[1756893638965,1.22764215,111390.0,111380.0,0.76185332]
[1756893639166,1.22764215,111390.0,111380.0,0.42221666]
[1756893639956,1.22764215,111390.0,111380.0,0.76185332]
[1756893641470,0.88800549,111390.0,111380.0,0.76185332]
[1756893641966,1.22764215,111390.0,111380.0,0.42221666]
[1756893642166,0.88800549,111390.0,111380.0,0.42221666]
[1756893642368,1.22764215,111390.0,111380.0,0.42221666]
[1756893643266,0.0378,111380.0,111370.0,0.10522613]
[1756893643465,0.39940215,111380.0,111370.0,0.44476279]
[1756893644071,0.05976549,111380.0,111370.0,0.44476279]
[1756893644270,0.39940215,111380.0,111370.0,0.44476279]
[1756893644774,0.73903881,111380.0,111370.0,0.08449]
[1756893645172,0.73903881,111380.0,111370.0,0.04817]
[1756893645366,0.009,111370.0,111360.0,0.42422666]
[1756893645568,1.20355666,111370.0,111360.0,0.55412666]
[1756893645870,1.22552215,111370.0,111360.0,0.55412666]
[1756893646271,0.88588549,111370.0,111360.0,0.55412666]
[1756893646470,1.22552215,111370.0,111360.0,0.55412666]
[1756893646673,0.88588549,111370.0,111360.0,0.55512666]
[1756893646867,1.22552215,111370.0,111360.0,0.55512666]
[1756893647070,0.88588549,111370.0,111360.0,0.21549]
[1756893647368,1.22552215,111370.0,111360.0,0.55512666]
[1756893647770,1.22552215,111370.0,111360.0,0.55612666]
[1756893649178,0.88588549,111370.0,111360.0,0.55612666]
[1756893649377,1.22552215,111370.0,111360.0,0.55612666]
[1756893649879,1.22552215,111370.0,111360.0,0.21649]
[1756893650068,0.88588549,111370.0,111360.0,0.55612666]
[1756893650268,1.22552215,111370.0,111360.0,0.55612666]
[1756893651377,0.88588549,111370.0,111360.0,0.55612666]
[1756893651578,1.22552215,111370.0,111360.0,0.55612666]
[1756893652073,1.22552215,111370.0,111360.0,0.51980666]
[1756893652576,1.22552215,111370.0,111360.0,0.55612666]
[1756893652880,1.22552215,111370.0,111360.0,0.05017]
[1756893654168,0.88588549,111370.0,111360.0,0.05017]
[1756893654372,1.22552215,111370.0,111360.0,0.05017]
[1756893655275,0.88588549,111370.0,111360.0,0.05017]
[1756893655584,1.22552215,111370.0,111360.0,0.05017]
[1756893657479,1.56552215,111370.0,111360.0,0.05017]
[1756893657684,1.56552215,111370.0,111360.0,0.002]
[1756893657685,1.24552215,111370.0,111360.0,0.002]
[1756893657881,1.22552215,111370.0,111360.0,0.02553]
[1756893659382,1.22552215,111370.0,111360.0,0.05017]
[1756893660187,0.88588549,111370.0,111360.0,0.05017]
[1756893660485,1.22552215,111370.0,111360.0,0.05017]
[1756893660681,0.88588549,111370.0,111360.0,0.05017]
[1756893660883,0.39940215,111370.0,111360.0,0.42612666]
[1756893661084,1.22544215,111370.0,111360.0,0.76576332]
[1756893661285,0.88580549,111370.0,111360.0,0.76576332]
[1756893662182,0.88580549,111370.0,111360.0,0.08649]
[1756893662386,1.22544215,111370.0,111360.0,0.08649]
[1756893662588,1.22544215,111370.0,111360.0,0.42612666]
[1756893663488,0.05976549,111370.0,111360.0,0.42612666]
[1756893663891,0.85168549,111370.0,111360.0,0.76576332]
[1756893665289,1.19132215,111370.0,111360.0,0.08649]
[1756893665488,1.19132215,111370.0,111360.0,0.76576332]
[1756893666089,1.19132215,111370.0,111360.0,0.08649]
[1756893666290,1.19132215,111370.0,111360.0,0.76576332]
[1756893666491,1.19132215,111370.0,111360.0,0.42612666]
[1756893667491,0.85168549,111370.0,111360.0,0.76576332]
[1756893667691,1.19132215,111370.0,111360.0,0.76576332]
[1756893668387,0.85168549,111370.0,111360.0,0.76576332]
[1756893668592,1.19132215,111370.0,111360.0,0.76576332]
[1756893668892,1.19132215,111370.0,111360.0,0.42612666]
[1756893671188,0.85168549,111370.0,111360.0,0.42612666]
[1756893671387,1.19132215,111370.0,111360.0,0.76576332]
[1756893671593,0.05976549,111370.0,111360.0,0.76576332]
[1756893671793,1.22536215,111370.0,111360.0,0.76576332]
[1756893672195,0.39940215,111370.0,111360.0,0.76576332]
[1756893672494,0.88572549,111370.0,111360.0,0.76576332]
[1756893672890,1.22536215,111370.0,111360.0,0.76576332]
[1756893673493,0.88572549,111370.0,111360.0,0.76576332]
[1756893674095,0.88572549,111370.0,111360.0,0.08649]
[1756893674294,0.88572549,111370.0,111360.0,0.76576332]
[1756893675099,1.22536215,111370.0,111360.0,0.08649]
[1756893675299,1.22536215,111370.0,111360.0,0.42612666]
[1756893677301,1.22536215,111370.0,111360.0,0.08649]
[1756893677498,1.22536215,111370.0,111360.0,0.42612666]
[1756893678207,1.22536215,111370.0,111360.0,0.08649]
[1756893678594,1.22536215,111370.0,111360.0,0.42612666]
[1756893679397,0.88572549,111370.0,111360.0,0.42612666]
[1756893679700,1.22536215,111370.0,111360.0,0.42612666]
[1756893681198,1.22536215,111370.0,111360.0,0.38980666]
[1756893681398,1.22536215,111370.0,111360.0,0.42611666]
[1756893681600,0.88572549,111370.0,111360.0,0.42611666]
[1756893681801,1.22536215,111370.0,111360.0,0.42611666]
[1756893682303,1.22536215,111370.0,111360.0,0.08648]
[1756893682501,1.22536215,111370.0,111360.0,0.42611666]
[1756893683401,0.88572549,111370.0,111360.0,0.05017]
[1756893683702,1.33883636,111370.0,111360.0,0.05017]
[1756893683904,1.33883636,111370.0,111360.0,0.08648]
[1756893684499,0.05976549,111370.0,111360.0,0.08648]
[1756893684700,0.88564549,111370.0,111360.0,0.53959087]
[1756893685000,0.88564549,111370.0,111360.0,0.08648]
[1756893685604,0.05976549,111370.0,111360.0,0.08648]
[1756893685806,0.88564549,111370.0,111360.0,0.08648]
[1756893686006,0.05976549,111370.0,111360.0,0.53959087]
[1756893686304,0.88564549,111370.0,111360.0,0.53959087]
[1756893686704,0.05976549,111370.0,111360.0,0.53959087]
[1756893686909,0.88564549,111370.0,111360.0,0.91959087]
[1756893687505,0.88564549,111370.0,111360.0,0.46648]
[1756893687705,0.88564549,111370.0,111360.0,0.91959087]
[1756893690106,0.88562661,111370.0,111360.0,0.91959087]
[1756893690800,0.88562661,111370.0,111360.0,0.53959087]
[1756893696213,0.88562661,111370.0,111360.0,0.08648]
[1756893697314,0.90562661,111370.0,111360.0,0.08648]
[1756893699214,0.90562661,111370.0,111360.0,0.53959087]
[1756893699717,0.90562661,111370.0,111360.0,0.08648]
[1756893699912,1.35873748,111370.0,111360.0,0.05033]
[1756893700112,1.38873748,111370.0,111360.0,0.05033]
[1756893701822,1.38873748,111370.0,111360.0,0.0866]
[1756893702023,0.93562661,111370.0,111360.0,0.0866]
[1756893704119,0.93562661,111370.0,111360.0,0.05033]
[1756893704326,0.93562661,111370.0,111360.0,0.02553]
[1756893704525,1.33873748,111370.0,111360.0,0.002]
[1756893705026,1.33861748,111370.0,111360.0,0.002]
[1756893705228,1.33861748,111370.0,111360.0,0.02556]
[1756893705427,1.33861748,111370.0,111360.0,0.04879]
[1756893705625,1.33861748,111370.0,111360.0,0.08506]
[1756893706425,0.88550661,111370.0,111360.0,0.53817087]
[1756893706629,0.83482,111380.0,111360.0,1.06190087]
[1756893706830,0.88556526,111380.0,111370.0,0.53617087]
[1756893707025,0.88546526,111380.0,111370.0,0.5568613]
[1756893709334,0.88546526,111380.0,111370.0,0.10375043]
[1756893709529,0.88546526,111380.0,111370.0,0.5568613]
[1756893711138,0.05974526,111380.0,111370.0,0.5568613]
[1756893711338,0.88542526,111380.0,111370.0,0.5568613]
[1756893711531,0.88542526,111380.0,111370.0,0.10375043]
[1756893711730,0.88542526,111380.0,111370.0,0.5568613]
[1756893712032,0.86348,111380.0,111370.0,0.5568613]
[1756893712234,0.0378,111380.0,111370.0,0.8768613]
[1756893712428,0.0288,111380.0,111370.0,0.8768613]
[1756893712633,0.0144,111380.0,111370.0,0.8768613]
[1756893713732,0.0091,111390.0,111370.0,1.0905913]
[1756893713934,0.0379,111390.0,111380.0,0.53617087]
[1756893714133,0.0378,111390.0,111380.0,0.53617087]
[1756893714828,0.0378,111390.0,111380.0,0.86617087]
[1756893715125,0.0398,111390.0,111380.0,0.85617087]
[1756893718639,0.002,111390.0,111380.0,0.85617087]
[1756893719727,0.0164,111390.0,111380.0,0.91617087]
[1756893719928,0.002,111390.0,111380.0,0.91617087]
[1756893720136,0.0164,111390.0,111380.0,0.91617087]
[1756893720332,0.0308,111390.0,111380.0,0.91617087]
[1756893720637,0.002,111390.0,111380.0,0.91617087]
[1756893721034,0.0164,111390.0,111380.0,0.91617087]
[1756893722041,0.002,111390.0,111380.0,0.91617087]
[1756893722743,0.002,111390.0,111380.0,1.16617087]
[1756893724241,0.002,111390.0,111380.0,1.74161087]
[1756893724842,0.002,111390.0,111380.0,0.91617087]
[1756893725143,0.002,111390.0,111380.0,1.74161087]
[1756893725339,0.002,111390.0,111380.0,2.08138397]
[1756893725744,0.002,111390.0,111380.0,1.16617087]
[1756893725937,0.002,111390.0,111380.0,1.99157087]
[1756893726835,0.002,111390.0,111380.0,2.08134397]
[1756893727238,0.04854373,111440.0,111390.0,0.04679]
[1756893727443,0.06004933,111440.0,111430.0,0.04679]
[1756893727649,0.5131602,111440.0,111430.0,0.04679]
[1756893728045,0.31004933,111440.0,111430.0,0.04679]
[1756893728441,0.31004933,111440.0,111430.0,0.08221]
[1756893729053,0.03822,111430.0,111420.0,0.06734661]
[1756893729349,0.0600329,111430.0,111420.0,0.08159]
[1756893729648,0.4000329,111430.0,111420.0,0.02294]
[1756893729850,1.10314377,111430.0,111420.0,0.02294]
[1756893730051,0.03822,111420.0,111410.0,0.53470087]
[1756893731253,0.03822,111420.0,111410.0,0.85367212]
[1756893731444,0.001,111430.0,111420.0,0.08272]
[1756893731649,0.001,111430.0,111420.0,0.88583087]
[1756893731650,0.02279818,111430.0,111420.0,0.88583087]
[1756893731955,0.01656,111430.0,111420.0,0.88583087]
[1756893732147,0.04022,111430.0,111420.0,0.08272]
[1756893732342,0.74333087,111430.0,111420.0,0.02294]
[1756893732552,0.03822,111420.0,111410.0,0.08372]
[1756893732746,0.03822,111420.0,111410.0,0.53683087]
[1756893732943,0.0101,111430.0,111420.0,0.03542]
[1756893733150,0.0610161,111430.0,111420.0,0.53583087]
[1756893733349,0.0620161,111430.0,111420.0,0.53583087]
[1756893733749,0.0610161,111430.0,111420.0,0.53583087]
[1756893735050,0.0373561,111430.0,111420.0,0.90583087]
[1756893735257,0.0227961,111430.0,111420.0,0.90583087]
[1756893735955,0.001,111430.0,111420.0,0.87583087]
[1756893736649,0.002,111430.0,111420.0,0.87583087]
[1756893737156,0.001,111430.0,111420.0,0.86583087]
[1756893737358,0.001,111430.0,111420.0,1.20957177]
[1756893737653,0.02912,111440.0,111430.0,0.03542]
[1756893737952,0.03822,111440.0,111430.0,0.86583087]
[1756893738961,0.03822,111440.0,111430.0,0.08272]
[1756893739456,0.03822,111440.0,111430.0,0.53583087]
[1756893739853,0.03822,111440.0,111430.0,0.54083087]
[1756893740055,0.01456,111440.0,111430.0,0.54083087]
[1756893740253,0.02912,111440.0,111430.0,0.08772]
[1756893740559,0.03822,111440.0,111430.0,0.54083087]
[1756893741266,0.06000168,111440.0,111430.0,0.54083087]
[1756893742160,0.03822,111440.0,111430.0,0.54083087]
[1756893742357,0.05090213,111440.0,111430.0,0.54083087]
[1756893742561,0.02178213,111440.0,111430.0,0.54083087]
[1756893742762,0.02178213,111440.0,111430.0,0.89083087]
[1756893743152,0.02178213,111440.0,111430.0,0.54083087]
[1756893743153,0.03634213,111440.0,111430.0,0.54083087]
[1756893743865,0.02178213,111440.0,111430.0,0.54083087]
[1756893745565,0.02178213,111440.0,111430.0,1.08633406]
[1756893745761,0.02178213,111440.0,111430.0,0.42702703]
[1756893745961,0.06000213,111440.0,111430.0,0.08772]
[1756893746158,0.06000213,111440.0,111430.0,0.42702703]
[1756893746558,0.03634213,111440.0,111430.0,0.42702703]
[1756893746762,0.03634213,111440.0,111430.0,0.08772]
[1756893747067,0.06000213,111440.0,111430.0,0.42702703]
[1756893747268,0.05090213,111440.0,111430.0,0.42702703]
[1756893747464,0.03634213,111440.0,111430.0,0.08772]
[1756893747668,0.03634213,111440.0,111430.0,0.42702703]
[1756893747862,0.03634213,111440.0,111430.0,0.08772]
[1756893748063,0.06000213,111440.0,111430.0,0.08772]
[1756893748266,0.02178213,111440.0,111430.0,0.42702703]
[1756893748464,0.0092,111450.0,111430.0,0.42702703]
[1756893748669,0.71762703,111450.0,111440.0,0.42202703]
[1756893748970,0.71752703,111450.0,111440.0,0.42202703]
[1756893749774,0.70842703,111450.0,111440.0,0.42202703]
[1756893749977,0.36912,111450.0,111440.0,0.76133406]
[1756893750179,0.37822,111450.0,111440.0,0.76333406]
[1756893750678,0.37822,111450.0,111440.0,0.77234904]
[1756893750879,0.37822,111450.0,111440.0,0.09473498]
[1756893751068,0.37822,111450.0,111440.0,0.77334904]
[1756893751267,0.36912,111450.0,111440.0,0.77334904]
[1756893751473,0.71752703,111450.0,111440.0,0.42502703]
[1756893751875,0.96752703,111450.0,111440.0,0.08572]
[1756893752173,1.35537779,111450.0,111440.0,0.003]
[1756893752376,1.35537779,111450.0,111430.0,0.0001]
[1756893752377,1.37125871,111450.0,111430.0,0.0001]
[1756893752681,2.19764574,111440.0,111430.0,0.0001]
[1756893752882,2.19764574,111440.0,111420.0,0.0001]
[1756893752883,2.22833871,111440.0,111420.0,0.0001]
[1756893753074,0.03822,111420.0,111410.0,0.42202703]
[1756893753278,1.58359851,111420.0,111410.0,0.08272]
[1756893753679,1.24429148,111420.0,111410.0,0.08272]
[1756893753879,1.58359851,111420.0,111410.0,0.08272]
[1756893754178,1.92290554,111420.0,111410.0,0.08272]
[1756893754476,2.17290554,111420.0,111410.0,0.002]
[1756893754684,2.18900897,111420.0,111410.0,0.002]
[1756893754884,2.528316,111420.0,111410.0,0.002]
[1756893755074,0.02982,111400.0,111390.0,0.08272]
[1756893755275,0.02982,111390.0,111380.0,0.08272]
[1756893755482,0.68912703,111390.0,111380.0,0.0473]
[1756893755678,0.68912703,111390.0,111380.0,0.02294]
[1756893755980,0.93202703,111390.0,111370.0,0.03542]
[1756893756284,1.53659406,111380.0,111370.0,0.08272]
[1756893756578,0.02982,111370.0,111360.0,0.0473]
[1756893756777,0.02982,111360.0,111350.0,0.09745]
[1756893756974,1.19748703,111360.0,111350.0,0.09745]
[1756893757178,1.57748703,111360.0,111350.0,0.09745]
[1756893757378,1.91679406,111360.0,111350.0,0.09745]
[1756893757586,1.91679406,111360.0,111350.0,0.06203]
[1756893758084,1.91679406,111360.0,111350.0,0.01473]
[1756893758984,1.91679406,111360.0,111350.0,0.01673]
[1756893759383,1.91679406,111360.0,111350.0,0.01873]
[1756893759591,1.76935012,111360.0,111350.0,0.01873]
[1756893760478,1.79098119,111360.0,111350.0,0.01873]
[1756893761087,1.26009107,111360.0,111350.0,0.10146]
[1756893761285,1.23846,111360.0,111350.0,0.10146]
[1756893761489,1.23846,111360.0,111350.0,0.01873]
[1756893762183,1.76963012,111360.0,111350.0,0.04196]
[1756893762384,1.76963012,111360.0,111350.0,0.01873]
[1756893762585,1.76963012,111360.0,111350.0,0.004]
[1756893762786,2.01963012,111360.0,111350.0,0.004]
[1756893762992,2.04123482,111360.0,111350.0,0.004]
[1756893763496,2.04143482,111360.0,111350.0,0.004]
[1756893765395,2.01983012,111360.0,111350.0,0.004]
[1756893765690,1.48866,111360.0,111350.0,0.004]
[1756893765989,2.01983012,111360.0,111350.0,0.002]
[1756893766193,0.0031,111330.0,111320.0,0.03543]
[1756893766395,0.84146,111330.0,111320.0,0.41142]
[1756893767303,0.84146,111330.0,111320.0,0.08142]
[1756893767483,0.84146,111330.0,111320.0,0.09242]
[1756893767991,1.19146,111330.0,111320.0,0.09242]
[1756893768190,0.84134,111330.0,111320.0,0.09242]
[1756893768392,1.16134,111330.0,111320.0,0.09242]
[1756893768692,0.84134,111330.0,111320.0,0.09242]
[1756893769196,0.8413,111330.0,111320.0,0.09242]
[1756893771197,0.01302,111330.0,111320.0,0.09242]
[1756893771390,0.84166,111330.0,111320.0,0.09242]
[1756893771694,0.84158,111330.0,111320.0,0.09242]
[1756893772089,0.01302,111330.0,111320.0,0.09242]
[1756893772395,0.84194,111330.0,111320.0,0.09242]
[1756893773091,1.17194,111330.0,111320.0,0.09242]
[1756893773291,0.01302,111330.0,111320.0,0.09242]
[1756893773485,0.84186,111330.0,111320.0,0.09242]
[1756893773794,0.01302,111330.0,111320.0,0.09242]
[1756893773996,0.84214,111330.0,111320.0,0.09242]
[1756893774397,1.17214,111330.0,111320.0,0.09242]
[1756893774896,0.84214,111330.0,111320.0,0.09242]
[1756893775286,0.01302,111330.0,111320.0,0.09242]
[1756893775489,0.335,111330.0,111320.0,0.83816012]
[1756893775690,0.335,111330.0,111320.0,0.87359012]
[1756893775890,0.33996,111330.0,111320.0,0.87359012]
[1756893776300,0.34802,111330.0,111320.0,0.87359012]
[1756893776497,0.01302,111330.0,111320.0,0.87359012]
[1756893776796,0.444,111330.0,111320.0,0.87359012]
[1756893777001,0.8431,111330.0,111320.0,0.34242]
[1756893777192,0.84,111330.0,111320.0,0.34242]
[1756893777392,0.00496,111330.0,111320.0,0.34242]
[1756893777693,0.84336,111340.0,111330.0,0.08142]
[1756893777886,0.86326,111340.0,111330.0,0.08142]
[1756893778798,0.86326,111340.0,111330.0,0.08542]
[1756893778995,0.84326,111340.0,111330.0,0.08542]
[1756893779200,1.16326,111340.0,111330.0,0.08942]
[1756893779498,1.50329094,111340.0,111330.0,0.05399]
[1756893779696,1.84332188,111340.0,111330.0,0.008]
[1756893780201,0.84326,111340.0,111330.0,0.03123]
[1756893780402,1.54486926,111340.0,111330.0,0.03123]
[1756893780705,0.39459832,111340.0,111330.0,0.42945094]
[1756893780898,0.86528738,111340.0,111330.0,0.42945094]
[1756893781099,1.22531832,111340.0,111330.0,0.42945094]
[1756893783398,0.88632738,111340.0,111330.0,0.42945094]
[1756893784198,0.85826738,111340.0,111330.0,0.42945094]
[1756893785505,0.86632738,111340.0,111330.0,0.42945094]
[1756893785906,0.03456738,111340.0,111330.0,0.42945094]
[1756893786101,0.86632738,111340.0,111330.0,0.42945094]
[1756893786405,0.85382738,111340.0,111330.0,0.67945094]
[1756893787103,0.02154738,111340.0,111330.0,1.33948188]
[1756893787604,0.01854738,111340.0,111330.0,1.01948188]
[1756893787804,0.73854,111350.0,111330.0,1.36405188]
[1756893788105,0.7435,111350.0,111340.0,0.76148188]
[1756893788305,0.7434,111350.0,111340.0,0.76148188]
[1756893788606,0.00496,111350.0,111340.0,0.76148188]
[1756893788803,0.34323094,111360.0,111340.0,0.76148188]
[1756893789001,0.84568,111360.0,111350.0,0.43544094]
[1756893789202,0.84558,111360.0,111350.0,0.43544094]
[1756893790507,1.18561094,111360.0,111350.0,0.43544094]
[1756893790711,1.20561094,111360.0,111350.0,0.43544094]
[1756893790908,1.20561094,111360.0,111350.0,0.43744094]
[1756893790909,0.86558,111360.0,111350.0,0.43744094]
[1756893791107,1.20561094,111360.0,111350.0,0.43744094]
[1756893791608,1.20561094,111360.0,111350.0,0.43944094]
[1756893791808,1.18561094,111360.0,111350.0,0.43944094]
[1756893792010,1.20561094,111360.0,111350.0,0.43944094]
[1756893792811,1.54561094,111360.0,111350.0,0.004]
[1756893793112,1.84564188,111360.0,111350.0,0.004]
[1756893793609,2.14397741,111360.0,111350.0,0.004]
[1756893794498,2.14397741,111360.0,111350.0,0.0642]